Cogmind - Beta 11 @@@ ROGUE MODE // 2022.04.18 @ 18:15:38 Player: Timm35 Result: Smashed by cave-in Performance ------------- Evolutions (1) 500 Regions Visited (2) 400 Robots Destroyed (4) 20 Value Destroyed (29) 29 Prototype IDs (2) 40 Alien Tech Used (0) 0 Bonus (0) 0 TOTAL SCORE: 989 Bonus ------- None Cogmind --------- Core Integrity 0/400 Matter 193/300 Energy 100/100 System Corruption 21% Temperature Cool (0) Movement Core (50) Location -9/Materials Parts ------- > --- POWER (2) -------- (None) > --- PROPULSION (3) --- (None) > --- UTILITY (2) ------ (None) > --- WEAPON (2) ------- Assault Rifle > --- INVENTORY (5) ---- Ion Engine VTOL Module Particle Gun Particle Gun Peak State ------------ > --- POWER ------------ Ion Engine Light Ion Engine > --- PROPULSION ------- VTOL Module VTOL Module VTOL Module > --- UTILITY ---------- Small Storage Unit Sensor Array > --- WEAPON ----------- Particle Gun Mining Laser > --- INVENTORY -------- VTOL Module Small Matter Pod Particle Gun Particle Gun Assault Rifle [Rating: 13] Favorites ----------- Power Ion Engine Engine Ion Engine Propulsion Wheel Wheel Wheel Flight Unit VTOL Module Utility Small Storage Unit Device Sensor Array Storage Small Storage Unit Processor Terrain Scan Processor Weapon Assault Rifle Energy Gun Particle Gun Ballistic Gun Assault Rifle Special Weapon Mining Laser Build | -11 -10 -9 ------- Run | Scr Mat Mat Slots Evolved 2 | . . 2 Power 1 | . . 1 Propulsion 1 | . . 1 Utility . | . . . Weapon . | . . . Parts Attached 19 | 7 4 8 Power 4 | 1 . 3 Engine 4 | 1 . 3 Core . | . . . Reactor . | . . . Propulsion 5 | 2 2 1 Treads . | . . . Leg . | . . . Wheel 2 | 2 . . Hover . | . . . Flight 3 | . 2 1 Utility 5 | 2 1 2 Device 2 | . 1 1 Storage 2 | 2 . . Processor 1 | . . 1 Hackware . | . . . Protection . | . . . Artifact . | . . . Weapon 5 | 2 1 2 Energy Gun 1 | . . 1 Energy Cannon . | . . . Ballistic Gun 3 | 2 . 1 Ballistic Cannon . | . . . Launcher . | . . . Special Weapon 1 | . 1 . Impact Weapon . | . . . Slashing Weapon . | . . . Piercing Weapon . | . . . Special Melee Weapon . | . . . Unidentified Prototypes . | . . . Parts Lost 11 | . 3 8 Power 2 | . 1 1 Propulsion 4 | . 1 3 Utility 3 | . 1 2 Weapon 2 | . . 2 Highest Loss Streak 3 | . 3 2 To Critical Strikes . | . . . Average Slot Usage (%) 80 | . 99 54 Engine 10 | . 13 6 Wheel 16 | . 27 . Flight 6 | . . 16 Device 5 | . 4 7 Storage 14 | . 22 1 Processor 3 | . . 8 Energy Gun 4 | . . 10 Ballistic Gun 13 | . 22 1 Special Weapon 4 | . 5 2 Naked Turns . | . . . Heaviest Build 14 | 14 14 10 Greatest Support 20 | 20 20 12 Greatest Overweight (x) . | . . . Average Overweight (x) . | . . . Largest Inventory Capacity 8 | 8 8 8 Average Capacity 7 | 7 8 5 Most Carried 8 | 5 8 8 Average Carried 3 | 2 4 5 Final Capacity 8 | 8 8 5 Final Carried 8 | 4 8 4 Class Distribution -------------------- 94% | Mutant 5% | Sprinter Dominant Class ---------------- Mutant | -10/Materials Mutant | -9/Materials Resources | -11 -10 -9 ----------- Run | Scr Mat Mat Matter Collected 361 | 268 30 63 Remotely . | . . . Salvage Created 75 | 23 30 22 Parts 11 | 3 5 3 Haulers Intercepted . | . . . Recyclers Shooed . | . . . Parts Field Recycled . | . . . Retrieved Matter . | . . . Parts Self-Destructed . | . . . Prevented . | . . . Kills | -11 -10 -9 ------- Run | Scr Mat Mat Combat Hostiles Destroyed . | . . . Classes Destroyed 4 | 1 2 1 Worker 1 | 1 . . Builder 1 | . 1 . Tunneler 1 | . 1 . Watcher 1 | . . 1 Best Kill Streak 1 | 1 1 1 Combat Bots Only . | . . . Max Kills in Single Turn 1 | 1 1 1 Gunslinging . | . . . Exploded . | . . . Melee . | . . . Uniques/NPCs Destroyed . | . . . Combat | -11 -10 -9 -------- Run | Scr Mat Mat Damage Taken 1172 | . 365 807 Core 573 | . 139 434 Absorbed by Shields . | . . . Core Remaining (%) 72 | 100 44 . Volleys Fired 77 | 2 35 40 Largest 2 | 2 2 2 Hottest 165 | 40 100 165 Shots Fired 99 | 4 38 57 Gun 57 | 4 6 47 Cannon . | . . . Launcher . | . . . Special 42 | . 32 10 Kinetic 24 | 4 6 14 Thermal 75 | . 32 43 Explosive . | . . . Electromagnetic . | . . . Robot Hit Streak 6 | 3 6 2 Robot Miss Streak 2 | . 2 1 Penetration Max . | . . . Secondary Targets . | . . . Shots Hit Robots 8 | 3 4 1 Core Hits 5 | 1 3 1 Critical Kills . | . . . Critical Parts Destroyed . | . . . Critical Strikes . | . . . Melee Attacks . | . . . Impact . | . . . Slashing . | . . . Piercing . | . . . Sneak Attacks . | . . . Combat Hostiles . | . . . Follow-up Attacks . | . . . Damage Inflicted 119 | 35 66 18 Guns 95 | 35 42 18 Cannons . | . . . Explosions . | . . . Melee . | . . . Ramming . | . . . Kinetic 77 | 35 42 . Thermal 42 | . 24 18 Explosive . | . . . Electromagnetic . | . . . Impact . | . . . Slashing . | . . . Piercing . | . . . Highest Corruption 21 | . 10 21 Average Corruption 12 | . 10 12 Corruption Purged . | . . . Corruption Blocked . | . . . Effects 19 | . 1 18 Message Errors 6 | . . 6 Matter Fused 4 | . . 4 Heat Flow Errors 3 | . . 3 Energy Discharges 3 | . 1 2 Data Loss (minor) 2 | . . 2 Misfires 1 | . . 1 Overload Shots . | . . . Overflow Damage . | . . . Projectiles . | . . . Explosions . | . . . Melee . | . . . Knockbacks . | . . . Impact . | . . . Kinetic . | . . . Secondary . | . . . Self-Inflicted Damage . | . . . Shots . | . . . Rammed . | . . . Targets Rammed . | . . . Kicked . | . . . Crushed . | . . . Highest Temperature 402 | . 200 402 Average Temperature 79 | . 68 88 Received Heat Transfer 90 | . . 90 Effects 4 | . . 4 Shutdowns 1 | . . 1 Interference 1 | . . 1 Matter Decay 1 | . . 1 Damage (minor) 1 | . . 1 Siege Activations . | . . . Robots Corrupted . | . . . Combat Hostiles . | . . . Parts Fried . | . . . Impact Corruptions . | . . . Robots Melted . | . . . Combat Hostiles . | . . . Parts Melted . | . . . Heat Transferred 87 | . 50 37 Parts Sabotaged . | . . . Parts Stolen . | . . . Parts Stripped . | . . . Power Chain Reactions . | . . . Missiles Intercepted . | . . . Alert | -11 -10 -9 ------- Run | Scr Mat Mat Peak Influence 249 | 5 14 249 Initial . | . . . Average 8 | . 2 65 Maximum Alert Level 1 | . . 1 Low Security (%) 98 | 100 100 86 Level 1 1 | . . 13 Level 2 . | . . . Level 3 . | . . . Level 4 . | . . . Level 5 . | . . . High Security . | . . . Max Security . | . . . Squads Dispatched 6 | . . 6 Investigation 3 | . . 3 Extermination . | . . . Reinforcement 3 | . . 3 Assault . | . . . Garrison . | . . . Intercept . | . . . Searches Triggered . | . . . Construction Impeded . | . . . Haulers Reinforced . | . . . Active Scanning Responses . | . . . Cargo Convoy Interrupts . | . . . Stealth | -11 -10 -9 --------- Run | Scr Mat Mat Distress Signals 3 | . . 3 Communications Jammed . | . . . Distress Signals . | . . . Times Spotted 12 | . . 12 Peak Tracking Total 5 | . . 5 Tactical Retreats 4 | . . 4 Traps | -11 -10 -9 ------- Run | Scr Mat Mat Traps Triggered . | . . . Indirectly . | . . . Trap Hack Attempts . | . . . Triggered . | . . . Disarmed . | . . . Reprogrammed 6 | . . 6 Reused 1 | . . 1 Traps Extracted . | . . . Installed . | . . . Triggered 1 | . . 1 Machines | -11 -10 -9 ---------- Run | Scr Mat Mat Machines Disabled . | . . . Max in Single Turn . | . . . Machines Sabotaged . | . . . Garrisons Compromised . | . . . Overloaded Fab Kills . | . . . Hacking | -11 -10 -9 --------- Run | Scr Mat Mat Machines Accessed 7 | . . 7 Terminals 6 | . . 6 Fabricators . | . . . Repair Stations . | . . . Recycling Units . | . . . Scanalyzers 1 | . . 1 Garrison Access . | . . . Total Hacks 27 | . . 27 Successful 20 | . . 20 Failed 7 | . . 7 Catastrophic . | . . . Database Lockouts . | . . . Manual . | . . . Terminals 24 | . . 24 Fabricators . | . . . Repair Stations . | . . . Recycling Units . | . . . Scanalyzers 3 | . . 3 Garrison Access . | . . . Terminal Hacks 17 | . . 17 Record 10 | . . 10 Prototype ID Bank 1 | . . 1 Emergency Access Points 1 | . . 1 Alert Level 1 | . . 1 Locate Traps 1 | . . 1 Reprogram Traps 1 | . . 1 Recall Investigation 1 | . . 1 Recall Reinforcements 1 | . . 1 Fabricator Hacks . | . . . Repair Station Hacks . | . . . Recycling Unit Hacks . | . . . Scanalyzer 3 | . . 3 Insert Component 2 | . . 2 Analyze 1 | . . 1 Garrison Access Hacks . | . . . Unauthorized Hacks . | . . . Terminals . | . . . Fabricators . | . . . Repair Stations . | . . . Recycling Units . | . . . Scanalyzers . | . . . Garrison Access . | . . . Data Cores Recovered . | . . . Used . | . . . Hacking Detections 6 | . . 6 Full Trace Events 3 | . . 3 Feedback Events . | . . . Feedback Blocked . | . . . Robot Schematics Acquired . | . . . Robots Built . | . . . Authchips . | . . . Time . | . . . Total Robot Build Rating . | . . . Part Schematics Acquired 1 | . . 1 Parts Built . | . . . Authchips . | . . . Time . | . . . Total Part Build Rating . | . . . Parts Repaired . | . . . Time . | . . . Parts Recycled . | . . . Recycled Matter . | . . . Retrieved Matter . | . . . Retrieved Components . | . . . Parts Scanalyzed 1 | . . 1 Part Schematics Acquired 1 | . . 1 Parts Damaged . | . . . Bothacking | -11 -10 -9 ------------ Run | Scr Mat Mat Used RIF Installer . | . . . Robots Hacked . | . . . Non-combat . | . . . Combat . | . . . Robot Hacks Applied . | . . . Relay Couplers Released . | . . . Fabnet Peak Effective % . | . . . Robots Rewired . | . . . Allies Hacked . | . . . Hacks Repelled . | . . . Allies | -11 -10 -9 -------- Run | Scr Mat Mat Total Allies . | . . . Largest Group . | . . . Highest-Rated Group . | . . . Highest-Rated Ally . | . . . Total Orders . | . . . Ally Attacks . | . . . Total Damage . | . . . Kills . | . . . Allies Corrupted . | . . . Allies Melted . | . . . Intel | -11 -10 -9 ------- Run | Scr Mat Mat Robot Analysis Total . | . . . Derelict Logs Recovered . | . . . Drone Launches . | . . . Drone Recoveries . | . . . Exploration | -11 -10 -9 ------------- Run | Scr Mat Mat Turns Passed 7687 | 5302 1395 990 Spaces Moved 1160 | 741 198 221 Core 7 | 7 . . Treads . | . . . Legs . | . . . Wheels 921 | 734 187 . Hover . | . . . Flight 232 | . 11 221 Fastest Speed 29 | 50 32 29 Average Speed 69 | 79 77 29 Slowest Speed 80 | 80 80 32 Overloaded Moves . | . . . Propulsion Burnouts . | . . . Robots Hopped . | . . . Cave-ins Triggered 11 | . 1 10 Exploration Rate (%) 45 | 85 23 27 Regions Visited 2 Branch Regions . Pre-discovered Areas . | . . . Known Exits Taken . | . . . Unknown Exits Taken 2 | 1 1 . Scrap Searched . | . . . Spaces Dug 28 | . 18 10 Terrain Destroyed 31 | . 21 10 Melee . | . . . Projectile 31 | . 21 10 AOE . | . . . Terrain Rammed . | . . . Walls Destroyed . | . . . Machines Disabled . | . . . Actions | -11 -10 -9 --------- Run | Scr Mat Mat Total 7859 | 5448 1340 1071 Wait 6573 | 4688 1088 797 Move 1158 | 740 197 221 Hop . | . . . Pick Up 21 | 11 9 1 Fast Attach 2 | . 1 1 Attach 16 | 7 3 6 Detach 4 | . 2 2 Swap 1 | . . 1 Drop 7 | . 5 2 Fire 77 | 2 35 40 Melee . | . . . Ram . | . . . Kick . | . . . Crush . | . . . Escape Stasis . | . . . Rewire . | . . . Trap . | . . . Miscellaneous . | . . . Route ------- -11/Scrapyard -10/Materials -9/Materials (discovered 1 exit: [*Mat]) History --------- Turn | Location | Event 14 | -11/Scrapyard | Discovered new exit (range 16) 2093 | -11/Scrapyard | Assembled infested the area 5303 | -11/Scrapyard | Entered Materials 5304 | -10/Materials | Build established: Mutant 6459 | -10/Materials | Discovered new exit (range 7) 6660 | -10/Materials | Crushed by falling debris 6660 | -10/Materials | Core integrity fell below 50% 6660 | -10/Materials | System corruption reached 10% 6691 | -10/Materials | Lost 3 parts (1p1n1u) 6698 | -10/Materials | Entered another Materials area 6698 | -9/Materials | Evolved 2 slots: Power x1, Propulsion x1 6915 | -9/Materials | Discovered new exit (range 13) 6996 | -9/Materials | Build established: Sprinter 7075 | -9/Materials | Crushed by falling debris 7085 | -9/Materials | Crushed by falling debris 7376 | -9/Materials | Build established: Mutant 7408 | -9/Materials | Crushed by falling debris 7408 | -9/Materials | System corruption reached 10% 7445 | -9/Materials | Crushed by falling debris 7615 | -9/Materials | Crushed by falling debris 7671 | -9/Materials | Crushed by falling debris 7681 | -9/Materials | Crushed by falling debris 7685 | -9/Materials | Crushed by falling debris 7685 | -9/Materials | Core integrity fell below 50% 7688 | -9/Materials | Crushed by falling debris 7688 | -9/Materials | Core integrity fell below 20% 7689 | -9/Materials | Crushed by falling debris 7689 | -9/Materials | Smashed by cave-in Last Messages --------------- 07597_ QG2 07615_ The unstable cave ceiling collapses. 07615_ Crushed by falling debris. 07616_ System corrupted: Component data lost. 07660_ TPVF&NGQ8QGT1BIMES